Cogmind - Beta 14 @@@ ROGUE MODE // 2024.11.20 @ 22:38:40 Player: skye Result: Destroyed by Y-45 Defender with Heavy Assault Rifle Performance ------------- Evolutions (1) 500 Regions Visited (4) 800 Robots Destroyed (41) 205 Value Destroyed (927) 927 Prototype IDs (2) 40 Alien Tech Used (0) 0 Bonus (11) 11 TOTAL SCORE: 2483 Bonus ------- High Alert Combat Kills 11 Cogmind --------- Core Integrity 0/400 Matter 35/300 Energy 100/100 System Corruption 3% Temperature Cool (42) Movement Core (350) Ox6 Location -9/Storage Parts ------- > --- POWER (1) -------- (None) > --- PROPULSION (3) --- (None) > --- UTILITY (3) ------ Large Storage Unit > --- WEAPON (2) ------- (None) > --- INVENTORY (15) --- Ion Engine Ion Engine Light Ion Engine Light Nuclear Core Structural Scanner Visual Processing Unit Improved Terrain Scanner Targeting Computer Medium Armor Plating Hacking Suite Rocket Launcher Datajack Hammer Peak State ------------ > --- POWER ------------ Heavy Ion Engine > --- PROPULSION ------- Light Treads Light Treads Light Treads > --- UTILITY ---------- Large Storage Unit Medium Armor Plating Shield Generator > --- WEAPON ----------- Rocket Launcher Hammer > --- INVENTORY -------- Ion Engine Ion Engine Light Ion Engine Light Nuclear Core Wheel Structural Scanner Visual Processing Unit Improved Terrain Scanner Targeting Computer Hacking Suite Medium Laser Rocket Launcher Datajack Datajack Mining Laser [Rating: 16] Favorites ----------- Power Heavy Ion Engine Engine Heavy Ion Engine Propulsion Light Treads Treads Light Treads Leg Aluminum Leg Wheel Wheel Utility Large Storage Unit Device Shield Generator Storage Large Storage Unit Protection Light Armor Plating Weapon Medium Laser Energy Gun Medium Laser Ballistic Gun Light Assault Rifle Launcher Rocket Launcher Impact Weapon Flail Build | -11 -10 -10 -9 -9 ------- Run | Yrd Mat Min Mat Sto Slots Evolved 2 | . . . 2 . Power . | . . . . . Propulsion 1 | . . . 1 . Utility 1 | . . . 1 . Weapon . | . . . . . Parts Attached 33 | 2 10 5 14 2 Power 6 | . 3 2 1 . Engine 6 | . 3 2 1 . Core . | . . . . . Reactor . | . . . . . Propulsion 9 | 2 2 1 3 1 Treads 6 | 2 . 1 3 . Leg . | . . . . . Wheel 3 | . 2 . . 1 Hover . | . . . . . Flight . | . . . . . Utility 8 | . 2 1 5 . Device 2 | . 1 . 1 . Storage 1 | . 1 . . . Processor . | . . . . . Hackware . | . . . . . Protection 5 | . . 1 4 . Artifact . | . . . . . Weapon 10 | . 3 1 5 1 Energy Gun 4 | . 1 1 2 . Energy Cannon . | . . . . . Ballistic Gun 1 | . 1 . . . Ballistic Cannon . | . . . . . Launcher 3 | . . . 2 1 Special Weapon . | . . . . . Impact Weapon 2 | . 1 . 1 . Slashing Weapon . | . . . . . Piercing Weapon . | . . . . . Special Melee Weapon . | . . . . . Unidentified Prototypes . | . . . . . Parts Lost 18 | . 6 1 1 10 Power 4 | . 3 . . 1 Propulsion 8 | . 3 . 1 4 Utility 2 | . . . . 2 Weapon 4 | . . 1 . 3 Highest Loss Streak 10 | . 4 1 1 10 To Critical Strikes . | . . . . . Average Slot Usage (%) 85 | . 90 75 87 84 Engine 12 | . 13 12 11 10 Treads 22 | . 26 13 22 26 Device 7 | . 5 6 9 6 Storage 12 | . 14 14 11 11 Protection 6 | . . 7 11 10 Energy Gun 8 | . 18 3 3 9 Ballistic Gun 3 | . 8 2 . . Launcher 3 | . . . 8 9 Impact Weapon 7 | . . 14 10 . Peak Build Rating 16 | 6 10 9 16 16 Average Rating 10 | 5 7 7 13 14 On Entrance 8 | 6 6 7 8 16 Naked Turns . | . . . . . Heaviest Build 43 | 10 27 32 43 41 Greatest Support 60 | 40 40 20 60 60 Greatest Overweight (x) 6 | . 2 2 1 6 Average Overweight (x) . | . . 1 . . Largest Inventory Capacity 15 | 8 15 15 15 15 Average Capacity 13 | 8 9 15 15 15 Most Carried 15 | 7 8 13 15 15 Average Carried 11 | 6 7 11 14 14 Final Capacity 15 | 8 15 15 15 15 Final Carried 15 | 6 6 12 15 13 Class Distribution -------------------- 86% | Mutant 12% | Derelict-Mutant Dominant Class ---------------- Mutant | -10/Materials Mutant | -10/Mines Mutant | -9/Materials Mutant | -9/Storage Resources | -11 -10 -10 -9 -9 ----------- Run | Yrd Mat Min Mat Sto Matter Collected 576 | 200 95 77 172 32 Remotely . | . . . . . Salvage Created 1040 | . 301 166 361 212 Parts 68 | . 29 5 24 10 Haulers Intercepted 1 | . . . 1 . Recyclers Shooed 2 | . 2 . . . Parts Field Recycled . | . . . . . Retrieved Matter . | . . . . . Parts Self-Destructed . | . . . . . Prevented . | . . . . . Kills | -11 -10 -10 -9 -9 ------- Run | Yrd Mat Min Mat Sto Combat Hostiles Destroyed 27 | . 8 4 12 3 Guns 14 | . 8 3 2 1 AOE 11 | . . . 9 2 Classes Destroyed 10 | . 4 1 3 2 Worker 3 | . 1 . 1 1 Builder 2 | . . . 1 1 Hauler 1 | . . . 1 . Recycler 2 | . . 1 . 1 Mechanic 1 | . . . . 1 Watcher 5 | . 2 . 3 . Swarmer 8 | . 3 3 2 . Grunt 15 | . 5 1 7 2 Brawler 1 | . . . . 1 Sentry 3 | . . . 3 . Best Kill Streak 7 | . 7 3 4 3 Combat Bots Only 5 | . 5 3 3 2 Max Kills in Single Turn 2 | . 1 1 2 2 Gunslinging . | . . . . . Exploded 2 | . . . 2 1 Melee . | . . . . . Uniques/NPCs Destroyed . | . . . . . Combat | -11 -10 -10 -9 -9 -------- Run | Yrd Mat Min Mat Sto Hostile Shots Fired 316 | . 134 34 43 105 Missed 107 | . 46 9 23 29 Damage Taken 2626 | . 882 242 307 1195 Core 621 | . 204 7 55 355 Absorbed by Shields 137 | . . . 105 32 Core Remaining (%) 57 | 100 . 15 . . Volleys Fired 120 | . 48 9 37 26 Largest 2 | . 2 1 1 2 Hottest 90 | . 90 50 50 83 Shots Fired 148 | . 75 9 37 27 Gun 114 | . 75 9 14 16 Cannon . | . . . . . Launcher 34 | . . . 23 11 Special . | . . . . . Kinetic 32 | . 32 . . . Thermal 82 | . 43 9 14 16 Explosive 34 | . . . 23 11 Electromagnetic . | . . . . . Robot Hit Streak 9 | . 9 6 5 6 Robot Miss Streak 5 | . 3 5 3 2 Penetration Max . | . . . . . Secondary Targets 4 | . 4 . . . Max Gunslinging Chain 1 | . 1 . . . Shots Hit Robots 99 | . 46 10 25 18 Core Hits 65 | . 21 3 25 16 Critical Kills . | . . . . . Critical Parts Destroyed 4 | . 1 2 1 . Critical Strikes 5 | . 2 2 1 . Burn 1 | . 1 . . . Destroy 1 | . 1 . . . Smash 3 | . . 2 1 . Melee Attacks 23 | . 1 8 14 . Impact 23 | . 1 8 14 . Slashing . | . . . . . Piercing . | . . . . . Sneak Attacks 2 | . . 1 1 . Combat Hostiles . | . . . . . Follow-up Attacks . | . . . . . Damage Inflicted 2843 | . 482 298 1240 823 Guns 769 | . 482 89 61 137 Cannons . | . . . . . Explosions 1708 | . . . 1022 686 Melee 366 | . . 209 157 . Ramming . | . . . . . Kinetic 126 | . 126 . . . Thermal 643 | . 356 89 61 137 Explosive 1708 | . . . 1022 686 Electromagnetic . | . . . . . Impact 366 | . . 209 157 . Slashing . | . . . . . Piercing . | . . . . . Highest Corruption 3 | . . . . 3 Average Corruption 3 | . . . . 3 Corruption Purged . | . . . . . Corruption Blocked . | . . . . . Overload Shots . | . . . . . Overflow Damage 222 | . . 133 89 . Projectiles . | . . . . . Explosions . | . . . . . Melee 222 | . . 133 89 . Knockbacks . | . . . . . Impact . | . . . . . Kinetic . | . . . . . Secondary . | . . . . . Self-Inflicted Damage 254 | . . . 151 103 Shots 10 | . . . 6 4 Rammed . | . . . . . Targets Rammed . | . . . . . Kicked . | . . . . . Crushed . | . . . . . Highest Temperature 404 | . 404 144 64 156 Average Temperature 85 | . 132 74 17 56 Received Heat Transfer 740 | . 240 57 72 371 Effects 4 | . 4 . . . Shutdowns 1 | . 1 . . . Energy Bleed 1 | . 1 . . . Interference 1 | . 1 . . . Damage (minor) 1 | . 1 . . . Siege Activations . | . . . . . Robots Corrupted 3 | . . 1 2 . Combat Hostiles 2 | . . 1 1 . Parts Fried 6 | . . 1 5 . Impact Corruptions 7 | . . 4 3 . Robots Melted . | . . . . . Combat Hostiles . | . . . . . Parts Melted 3 | . 2 . . 1 Heat Transferred 1939 | . 1088 259 185 407 Parts Sabotaged . | . . . . . Parts Stolen . | . . . . . Parts Stripped . | . . . . . Power Chain Reactions . | . . . . . Alert | -11 -10 -10 -9 -9 ------- Run | Yrd Mat Min Mat Sto Peak Influence 437 | . 153 72 437 295 Initial 149 | . . 11 27 149 Average 115 | . 65 45 186 216 Maximum Alert Level 2 | . . . 2 1 Low Security (%) 79 | 100 100 100 54 39 Level 1 19 | . . . 43 60 Level 2 . | . . . 1 . Level 3 . | . . . . . Level 4 . | . . . . . Level 5 . | . . . . . High Security . | . . . . . Max Security . | . . . . . Squads Dispatched 7 | . 3 . 2 2 Investigation 3 | . 2 . 1 . Extermination . | . . . . . Reinforcement 3 | . 1 . 1 1 Assault . | . . . . . Garrison 1 | . . . . 1 Intercept . | . . . . . Searches Triggered . | . . . . . Construction Impeded . | . . . . . Haulers Reinforced . | . . . . . Active Scanning Responses . | . . . . . Cargo Convoy Interrupts . | . . . . . Stealth | -11 -10 -10 -9 -9 --------- Run | Yrd Mat Min Mat Sto Distress Signals 4 | . 2 . 2 . Communications Jammed . | . . . . . Distress Signals . | . . . . . Times Spotted 51 | . 22 5 17 7 Peak Tracking Total 5 | . 5 3 4 5 Tactical Retreats 4 | . 1 1 2 . Traps | -11 -10 -10 -9 -9 ------- Run | Yrd Mat Min Mat Sto Traps Triggered 3 | . 2 . 1 . Indirectly . | . . . . . Trap Hack Attempts . | . . . . . Triggered . | . . . . . Disarmed . | . . . . . Reprogrammed . | . . . . . Reused . | . . . . . Traps Extracted . | . . . . . Installed . | . . . . . Triggered 2 | . . 2 . . Machines | -11 -10 -10 -9 -9 ---------- Run | Yrd Mat Min Mat Sto Machines Disabled 2 | . . . 2 . Max in Single Turn 1 | . . . 1 . Machines Repaired . | . . . . . Machines Dismantled . | . . . . . Machines Sabotaged . | . . . . . Overloaded Fab Kills . | . . . . . Hacking | -11 -10 -10 -9 -9 --------- Run | Yrd Mat Min Mat Sto Machines Accessed 14 | . 5 . 8 1 Terminals 13 | . 5 . 7 1 Fabricators . | . . . . . Repair Stations . | . . . . . Recycling Units 1 | . . . 1 . Scanalyzers . | . . . . . Garrison Access . | . . . . . Total Hacks 43 | . 15 . 27 1 Successful 24 | . 6 . 17 1 Failed 19 | . 9 . 10 . Catastrophic 4 | . 2 . 2 . Database Lockouts . | . . . . . Manual 39 | . 15 . 24 . Terminals 40 | . 15 . 24 1 Fabricators . | . . . . . Repair Stations . | . . . . . Recycling Units 3 | . . . 3 . Scanalyzers . | . . . . . Garrison Access . | . . . . . Terminal Hacks 9 | . . . 8 1 Part Schematic 2 | . . . 2 . Prototype ID Bank 1 | . . . 1 . Open Door 1 | . . . . 1 Branch Access Points 1 | . . . 1 . Terminal Index 1 | . . . 1 . Alert Level 1 | . . . 1 . Registered Components 1 | . . . 1 . Zone Layout 1 | . . . 1 . Fabricator Hacks . | . . . . . Repair Station Hacks . | . . . . . Recycling Unit Hacks 2 | . . . 2 . Report Inventory 1 | . . . 1 . Retrieve Components 1 | . . . 1 . Scanalyzer . | . . . . . Garrison Access Hacks . | . . . . . Unauthorized Hacks 12 | . 5 . 7 . Terminals 12 | . 5 . 7 . Botnet 12 | . 5 . 7 . Fabricators . | . . . . . Repair Stations . | . . . . . Recycling Units . | . . . . . Scanalyzers . | . . . . . Garrison Access . | . . . . . Data Cores Recovered . | . . . . . Used . | . . . . . Hacking Detections 11 | . 5 . 6 . Full Trace Events 1 | . 1 . . . Feedback Events . | . . . . . Feedback Blocked . | . . . . . Robot Schematics Acquired . | . . . . . Robots Built . | . . . . . Authchips . | . . . . . Time . | . . . . . Total Robot Build Rating . | . . . . . Part Schematics Acquired 2 | . . . 2 . Parts Built . | . . . . . Authchips . | . . . . . Time . | . . . . . Total Part Build Rating . | . . . . . Parts Repaired . | . . . . . Time . | . . . . . Parts Recycled . | . . . . . Recycled Matter . | . . . . . Retrieved Matter . | . . . . . Retrieved Components 2 | . . . 2 . Parts Scanalyzed . | . . . . . Part Schematics Acquired . | . . . . . Parts Damaged . | . . . . . Bothacking | -11 -10 -10 -9 -9 ------------ Run | Yrd Mat Min Mat Sto Used RIF Installer . | . . . . . Robots Hacked . | . . . . . Non-combat . | . . . . . Combat . | . . . . . Robot Hacks Applied . | . . . . . Relay Couplers Released . | . . . . . Fabnet Peak Effective % . | . . . . . Robots Rewired . | . . . . . Allies Hacked . | . . . . . Hacks Repelled . | . . . . . Allies | -11 -10 -10 -9 -9 -------- Run | Yrd Mat Min Mat Sto Total Allies . | . . . . . Largest Group . | . . . . . Highest-Rated Group . | . . . . . Highest-Rated Ally . | . . . . . Total Orders . | . . . . . Ally Attacks . | . . . . . Total Damage . | . . . . . Kills . | . . . . . Allies Corrupted . | . . . . . Allies Melted . | . . . . . Intel | -11 -10 -10 -9 -9 ------- Run | Yrd Mat Min Mat Sto Robot Analysis Total . | . . . . . Derelict Logs Recovered . | . . . . . Drone Launches . | . . . . . Drone Recoveries . | . . . . . Exploration | -11 -10 -10 -9 -9 ------------- Run | Yrd Mat Min Mat Sto Turns Passed 2999 | 5 1023 667 1138 166 Spaces Moved 1452 | 2 562 270 552 66 Core 1 | . . . . 1 Treads 1385 | 2 530 236 552 65 Legs . | . . . . . Wheels 66 | . 32 34 . . Hover . | . . . . . Flight . | . . . . . Fastest Speed 95 | 160 95 110 160 160 Average Speed 176 | 160 156 223 175 167 Slowest Speed 350 | 160 240 240 240 350 Overloaded Moves . | . . . . . Propulsion Burnouts . | . . . . . Robots Hopped . | . . . . . Cave-ins Triggered . | . . . . . Exploration Rate (%) 39 | 2 67 69 41 19 Regions Visited 4 Branch Regions 2 Pre-discovered Areas . | . . . . . Known Exits Taken 1 | . . . 1 . Unknown Exits Taken 3 | 1 1 1 . . Scrap Searched 2 | . . 2 . . Spaces Dug 5 | . 1 1 3 . Terrain Destroyed 283 | . 1 1 194 87 Melee 5 | . 1 1 3 . Projectile . | . . . . . AOE 278 | . . . 191 87 Terrain Rammed . | . . . . . Walls Destroyed . | . . . . . Machines Disabled . | . . . . . Actions | -11 -10 -10 -9 -9 --------- Run | Yrd Mat Min Mat Sto Total 1714 | 5 635 313 666 95 Wait 40 | . . 13 26 1 Move 1448 | 1 561 269 551 66 Hop . | . . . . . Pick Up 24 | . 8 6 10 . Fast Attach 9 | . 2 2 5 . Attach 10 | 2 4 2 . 2 Detach 4 | 2 . 2 . . Swap 14 | . 4 1 9 . Drop 22 | . 7 1 14 . Fire 120 | . 48 9 37 26 Melee 23 | . 1 8 14 . Ram . | . . . . . Kick . | . . . . . Crush . | . . . . . Escape Stasis . | . . . . . Rewire . | . . . . . Trap . | . . . . . Miscellaneous . | . . . . . Route ------- -11/Scrapyard -10/Materials (discovered 4 exits: *Mat x3 / [*Min]) -10/Mines (discovered 2 exits: *Mat x2) -9/Materials (discovered 3 exits: [*Mat] / Min / *Sto) -9/Storage History --------- Turn | Location | Event 4 | -11/Scrapyard | Discovered new exit (range 1) 6 | -11/Scrapyard | Entered Materials 183 | -10/Materials | Discovered new exit (range 9) 226 | -10/Materials | Discovered new exit (range 16) 303 | -10/Materials | Build established: Mutant 563 | -10/Materials | Core integrity fell below 50% 843 | -10/Materials | Discovered new exit (range 12) 979 | -10/Materials | Discovered new exit (range 13) 1009 | -10/Materials | Core integrity fell below 20% 1029 | -10/Materials | Entered Mines 1045 | -10/Mines | Met a Derelict bent on vengeance 1050 | -10/Mines | Lost 4 parts (1p3n) 1066 | -10/Mines | Found DCF Scrap (15 items) 1573 | -10/Mines | Discovered new exit (range 10) 1621 | -10/Mines | Discovered new exit (range 9) 1696 | -10/Mines | Entered Materials 1696 | -9/Materials | Evolved 2 slots: Propulsion x1, Utility x1 1817 | -9/Materials | Build established: Derelict-Mutant 2191 | -9/Materials | Build established: Mutant 2325 | -9/Materials | Discovered new exit (range 3) 2741 | -9/Materials | Identified exit to Mines 2741 | -9/Materials | Identified exit to Storage 2834 | -9/Materials | Entered Storage 2967 | -9/Storage | Garrison activated, responded to threat 2988 | -9/Storage | Core integrity fell below 50% 2997 | -9/Storage | Core integrity fell below 20% 3000 | -9/Storage | Destroyed by Y-45 Defender with Heavy Assault Rifle Last Messages --------------- Rocket Launcher destroyed. R-06 Scavenger collects Heat Sink. R-06 Scavenger collects Sml. Matter Pod. Critical hit (Burn: +37). The unstable cave ceiling collapses. Lgt. Treads destroyed. The unstable cave ceiling collapses. L-31 Rogue destroyed. Med. Laser destroyed. System corrupted by crushing effect (+3). R-06 Scavenger destroyed. Hvy. Ion Engine destroyed. Critical hit (Burn: +37). R-06 Scavenger destroyed. Hrd. Light Armor Plating destroyed. Destroyed Hrd. Light Armor Plating. The unstable cave ceiling collapses. B-36 Bruiser destroyed. The unstable cave ceiling collapses. Mni. Grenade Launcher destroyed. Map ----- +----------------------------------------------------+ | | | ???????###########???????????????????????????????? | | ?????? #???????????????????????????????? | | ???" """" """" [#???????????????????????????????? | | ??"T """" """" #???????????????????????????????? | | ??"" """" """" [#???????????????????????????????? | | ???# """" """" #???????????????????????????????? | | ???# #####???????????????????????????? | | ???#######+### ###############+#####?????????????? | | ????# #?????????????? | | ????# +?????????????? | | ????# % #?????????????? | | ????#######+### ##### ######### #?????????????? | | ?????###??# ######## #???????????????????????? | | ?????#!!!!# #??????? #???????????????????????? | | ?????# #???????#% #???????????????????????? | | ?????#!!!!#T##????#### ##??????????????????????? | | ?????########????## ########+??????????????? | | ?????????????????# # Y = ????????????? | | ?????????????????# # #! ""????????????? | | ?????????????????# # =%! """ R????????????? | | ??????????######## #= """??"?????????????? | | ?????????# "??????????????????? | | ?????????# ????????????????????? | | ?????????# """ """ Y #########/##??????????? | | ???????????""" """ %Y%@* ???????? | | ????????????"" """ ! ???????? | | ?????????? # = #######+###???????????? | | ?????????? ## ##?????????????????????? | | ?????????? ?#######??????????????????????? | | ??????????##" "## #??????????????????????????????? | | ???????????#"G"?#????????????????????????????????? | | ???????????#?????????????????????????????????????? | | ?????????????????????????????????????????????????? | | ?????????????????????????????????????????????????? | | ?????????????????????????????????????????????????? | | ?????????????????????????????????????????????????? | | ?????????????????????????????????????????????????? | | ?????????????????????????????????????????????????? | | ?????????????????????????????????????????????????? | | ?????????????????????????????????????????????????? | | ?????????????????????????????????????????????????? | | ?????????????????????????????????????????????????? | | ?????????????????????????????????????????????????? | | ?????????????????????????????????????????????????? | | ?????????????????????????????????????????????????? | | ?????????????????????????????????????????????????? | | ?????????????????????????????????????????????????? | | ?????????????????????????????????????????????????? | | ?????????????????????????????????????????????????? | +----------------------------------------------------+ Best States ------------- Heat Dissipation 28 Coolant Potential 50 Energy Generation 14 Energy Capacity 280 Matter Stores 300 Matter Capacity 300 Sight Range 16 Terrain Scan Density 10 Armor Coverage 225 Evasion (%) 41 Recoil Reduction 3 Item Schematics ----------------- Lgt. Treads | -9/Materials | Hacked Ion Engine | -9/Materials | Hacked Robot Schematics ------------------ None Fabricated ------------ Nothing Alien Tech Used ----------------- None Achievements -------------- None Challenges ------------ None Game ------ Seed ShrapnelAblativeClaws Manual? 0 Play Time 00:21:53 Cumulative 51.1 hours Start 2024.11.20 @ 22:18:57 End 2024.11.20 @ 22:38:40 Sessions 1 Manual Loads 0 Difficulty Rogue Special Mode None Game No. 62 Rogue 18 Adventurer 44 Explorer 0 Win Type - Total 0 Types 0/0/0/0/0/0/0/0/0 Lore% 18 Gallery% 42 Achievement% 30 Wizard Run 0 Options --------- Layout 1 ASCII 0 Keyboard 1 Movement Vi Keybinds 0 Fullscreen 1 Font 24/Terminus Map View 50x40 Zoom Use 0% Tactical HUD 0 Map Filters NONE Filters NONE Steam 1 RUN: 6e4ababd-da7c-4041-8a5e-5e1d32a393dd